fUSD/lending_fUSD_20240704
["ID","MTS","AMOUNT","RATE_DAILY","PERIOD"]
[331109654,1720085434946,-197.01512254,0.0002,2]
[331109655,1720085434956,-197.01512254,0.0002,2]
[331109656,1720085434965,-197.01512254,0.0002,2]
[331109657,1720085434975,-197.01512254,0.0002,2]
[331109658,1720085434985,-197.01512254,0.0002,2]
[331109659,1720085434998,-2969.46777455,0.00020083,2]
[331109660,1720085435007,-472.15145903,0.00020362,2]
[331109661,1720085435017,-315.10956939,0.00020394,2]
[331109662,1720085435026,-500.0,0.00020468,2]
[331109663,1720085435035,-500.0,0.00020468,2]
[331109664,1720085435045,-500.0,0.00020468,2]
[331109665,1720085435054,-500.0,0.00020468,2]
[331109666,1720085435063,-500.0,0.00020468,2]
[331109667,1720085435073,-500.0,0.00020468,2]
[331109668,1720085435083,-500.0,0.00020468,2]
[331109669,1720085435093,-500.0,0.00020468,2]
[331109670,1720085435103,-500.0,0.00020468,2]
[331109671,1720085435114,-500.0,0.00020468,2]
[331109672,1720085435123,-500.0,0.00020468,2]
[331109673,1720085435133,-500.0,0.00020468,2]
[331109674,1720085435143,-500.0,0.00020468,2]
[331109675,1720085435152,-500.0,0.00020468,2]
[331109676,1720085435162,-500.0,0.00020468,2]
[331109677,1720085435173,-500.0,0.00020468,2]
[331109678,1720085435183,-500.0,0.00020468,2]
[331109679,1720085435192,-500.0,0.00020468,2]
[331109680,1720085435203,-500.0,0.00020468,2]
[331109681,1720085435213,-500.0,0.00020468,2]
[331109682,1720085435223,-500.0,0.00020468,2]
[331109683,1720085435232,-500.0,0.00020468,2]
[331109684,1720085435247,-500.0,0.00020468,2]
[331109685,1720085435256,-1444.9678708,0.00020468,2]
[331109686,1720085435266,-26965.78678275,0.00020468,2]
[331109687,1720085435274,-1000.0,0.000205,2]
[331109688,1720085435283,-500.0,0.00020511,2]
[331109689,1720085435296,-500.0,0.00020511,2]
[331109690,1720085435305,-500.0,0.00020511,2]
[331109691,1720085435314,-500.0,0.00020511,2]
[331109692,1720085435324,-500.0,0.00020511,2]
[331109693,1720085435334,-500.0,0.00020511,2]
[331109694,1720085435344,-500.0,0.00020511,2]
[331109695,1720085435353,-500.0,0.00020511,2]
[331109696,1720085435363,-500.0,0.00020511,2]
[331109697,1720085435372,-500.0,0.00020511,2]
[331109698,1720085435382,-500.0,0.00020511,2]
[331109699,1720085435392,-500.0,0.00020511,2]
[331109700,1720085435402,-500.0,0.00020511,2]
[331109701,1720085435411,-500.0,0.00020511,2]
[331109702,1720085435421,-500.0,0.00020511,2]
[331109703,1720085435430,-500.0,0.00020511,2]
[331109704,1720085435440,-500.0,0.00020511,2]
[331109705,1720085435450,-500.0,0.00020511,2]
[331109706,1720085435460,-500.0,0.00020511,2]
[331109707,1720085435469,-500.0,0.00020511,2]
[331109708,1720085435479,-500.0,0.00020511,2]
[331109709,1720085435489,-500.0,0.00020514,2]
[331109710,1720085435502,-200.0,0.00020514,2]
[331109711,1720085435512,-150.0,0.00020521,2]
[331109712,1720085435521,-2969.46777455,0.00020561,2]
[331109713,1720085435530,-533.6633,0.00020577,2]
[331109714,1720085435539,-7500.0,0.0002058,2]
[331109715,1720085435549,-179.81673788,0.0002058,2]
[331109716,1720085435565,-300.0,0.000206,7]
[331109717,1720085435575,-5176.0,0.00020637,2]
[331109718,1720085435584,-291.0,0.00020637,2]
[331109719,1720085435594,-5810.0,0.00020637,2]
[331109720,1720085435606,-198.0,0.0002066,2]
[331109721,1720085435616,-162.73960373,0.00020678,2]
[331109722,1720085435625,-216.0,0.00020678,2]
[331109723,1720085435635,-162.09000773,0.00020679,2]
[331109724,1720085435647,-4464.82660764,0.00020679,2]
[331109725,1720085435656,-173.76636117,0.00020679,2]
[331109726,1720085435665,-1403.0,0.0002068,2]
[331109727,1720085435675,-277945.89309281,0.0002068,2]
[331109728,1720085435687,-363.6,0.0002068,2]
[331109729,1720085435698,-1085.42033485,0.0002068,2]
[331109730,1720085435711,-115614.74017535,0.0002068,2]
[331109731,1720085435720,-500.0,0.0002068,2]
[331109732,1720085435729,-500.0,0.0002068,2]
[331109733,1720085435738,-500.0,0.0002068,2]
[331109734,1720085435752,-500.0,0.0002068,2]
[331109735,1720085435762,-500.0,0.0002068,2]
[331109736,1720085435772,-500.0,0.0002068,2]
[331109737,1720085435783,-500.0,0.0002068,2]
[331109738,1720085435793,-500.0,0.0002068,2]
[331109739,1720085435803,-500.0,0.0002068,2]
[331109740,1720085435812,-500.0,0.0002068,2]
[331109741,1720085435822,-500.0,0.0002068,2]
[331109742,1720085435832,-500.0,0.0002068,2]
[331109743,1720085435842,-500.0,0.0002068,2]
[331109744,1720085435852,-500.0,0.0002068,2]
[331109745,1720085435861,-500.0,0.0002068,2]
[331109746,1720085435870,-500.0,0.0002068,2]
[331109747,1720085435880,-500.0,0.0002068,2]
[331109748,1720085435890,-500.0,0.0002068,2]
[331109749,1720085435899,-500.0,0.0002068,2]
[331109750,1720085435909,-500.0,0.0002068,2]
[331109751,1720085435919,-500.0,0.0002068,2]
[331109752,1720085435928,-500.0,0.0002068,2]
[331109753,1720085435938,-500.0,0.0002068,2]
[331109754,1720085435948,-500.0,0.0002068,2]
[331109755,1720085435957,-500.0,0.0002068,2]
[331109756,1720085435967,-500.0,0.0002068,2]
[331109757,1720085435976,-500.0,0.0002068,2]
[331109758,1720085435986,-500.0,0.0002068,2]
[331109759,1720085435997,-500.0,0.0002068,2]
[331109760,1720085436006,-500.0,0.0002068,2]
[331109761,1720085436015,-500.0,0.0002068,2]
[331109762,1720085436024,-500.0,0.0002068,2]
[331109763,1720085436033,-500.0,0.0002068,2]
[331109764,1720085436043,-500.0,0.0002068,2]
[331109765,1720085436052,-500.0,0.0002068,2]
[331109766,1720085436061,-500.0,0.0002068,2]
[331109767,1720085436071,-500.0,0.0002068,2]
[331109768,1720085436081,-500.0,0.0002068,2]
[331109769,1720085436090,-500.0,0.0002068,2]
[331109770,1720085436110,-500.0,0.0002068,2]
[331109771,1720085436125,-500.0,0.0002068,2]
[331109772,1720085436141,-500.0,0.0002068,2]
[331109773,1720085436154,-500.0,0.0002068,2]
[331109774,1720085436165,-500.0,0.0002068,2]
[331109775,1720085436179,-500.0,0.0002068,2]
[331109776,1720085436193,-500.0,0.0002068,2]
[331109777,1720085436206,-500.0,0.0002068,2]
[331109778,1720085436220,-500.0,0.0002068,2]
[331109779,1720085436232,-500.0,0.0002068,2]
[331109780,1720085436250,-500.0,0.0002068,2]
[331109781,1720085436265,-500.0,0.0002068,2]
[331109782,1720085436280,-500.0,0.0002068,2]
[331109783,1720085436292,-500.0,0.0002068,2]
[331109784,1720085436306,-500.0,0.0002068,2]
[331109785,1720085436318,-500.0,0.0002068,2]
[331109786,1720085436331,-500.0,0.0002068,2]
[331109787,1720085436345,-500.0,0.0002068,2]
[331109788,1720085436359,-500.0,0.0002068,2]
[331109789,1720085436372,-500.0,0.0002068,2]
[331109790,1720085436383,-500.0,0.0002068,2]
[331109791,1720085436395,-500.0,0.0002068,2]
[331109792,1720085436407,-500.0,0.0002068,2]
[331109793,1720085436420,-500.0,0.0002068,2]
[331109794,1720085436433,-500.0,0.0002068,2]
[331109795,1720085436446,-500.0,0.0002068,2]
[331109796,1720085436458,-500.0,0.0002068,2]
[331109797,1720085436472,-500.0,0.0002068,2]
[331109798,1720085436487,-500.0,0.0002068,2]
[331109799,1720085436502,-500.0,0.0002068,2]
[331109800,1720085436513,-500.0,0.0002068,2]
[331109801,1720085436524,-500.0,0.0002068,2]
[331109802,1720085436534,-500.0,0.0002068,2]
[331109803,1720085436548,-500.0,0.0002068,2]
[331109804,1720085436566,-500.0,0.0002068,2]
[331109805,1720085436580,-500.0,0.0002068,2]
[331109806,1720085436592,-500.0,0.0002068,2]
[331109807,1720085436604,-500.0,0.0002068,2]
[331109808,1720085436616,-500.0,0.0002068,2]
[331109809,1720085436629,-500.0,0.0002068,2]
[331109810,1720085436646,-500.0,0.0002068,2]
[331109811,1720085436657,-500.0,0.0002068,2]
[331109812,1720085436668,-500.0,0.0002068,2]
[331109813,1720085436680,-500.0,0.0002068,2]
[331109814,1720085436692,-500.0,0.0002068,2]
[331109815,1720085436704,-500.0,0.0002068,2]
[331109816,1720085436721,-500.0,0.0002068,2]
[331109817,1720085436733,-500.0,0.0002068,2]
[331109818,1720085436746,-500.0,0.0002068,2]
[331109819,1720085436758,-500.0,0.0002068,2]
[331109820,1720085436770,-500.0,0.0002068,2]
[331109821,1720085436782,-500.0,0.0002068,2]
[331109822,1720085436793,-500.0,0.0002068,2]
[331109823,1720085436804,-500.0,0.0002068,2]
[331109824,1720085436816,-500.0,0.0002068,2]
[331109825,1720085436828,-500.0,0.0002068,2]
[331109826,1720085436840,-500.0,0.0002068,2]
[331109827,1720085436852,-500.0,0.0002068,2]
[331109828,1720085436863,-500.0,0.0002068,2]
[331109829,1720085436875,-500.0,0.0002068,2]
[331109830,1720085436886,-500.0,0.0002068,2]
[331109831,1720085436898,-500.0,0.0002068,2]
[331109832,1720085436910,-500.0,0.0002068,2]
[331109833,1720085436921,-500.0,0.0002068,2]
[331109834,1720085436933,-500.0,0.0002068,2]
[331109835,1720085436945,-500.0,0.0002068,2]
[331109836,1720085436956,-500.0,0.0002068,2]
[331109837,1720085436967,-500.0,0.0002068,2]
[331109838,1720085436979,-500.0,0.0002068,2]
[331109839,1720085436991,-500.0,0.0002068,2]
[331109840,1720085437007,-500.0,0.0002068,2]
[331109841,1720085437019,-500.0,0.0002068,2]
[331109842,1720085437031,-500.0,0.0002068,2]
[331109843,1720085437043,-500.0,0.0002068,2]
[331109844,1720085437055,-500.0,0.0002068,2]
[331109845,1720085437068,-500.0,0.0002068,2]
[331109846,1720085437081,-500.0,0.0002068,2]
[331109847,1720085437093,-500.0,0.0002068,2]
[331109848,1720085437106,-500.0,0.0002068,2]
[331109849,1720085437119,-500.0,0.0002068,2]
[331109850,1720085437131,-500.0,0.0002068,2]
[331109851,1720085437143,-500.0,0.0002068,2]
[331109852,1720085437155,-500.0,0.0002068,2]
[331109853,1720085437168,-500.0,0.0002068,2]
[331109854,1720085437180,-500.0,0.0002068,2]
[331109855,1720085437192,-500.0,0.0002068,2]
[331109856,1720085437204,-500.0,0.0002068,2]
[331109857,1720085437217,-500.0,0.0002068,2]
[331109858,1720085437229,-500.0,0.0002068,2]
[331109859,1720085437242,-500.0,0.0002068,2]
[331109860,1720085437257,-500.0,0.0002068,2]
[331109861,1720085437269,-500.0,0.0002068,2]
[331109862,1720085437283,-500.0,0.0002068,2]
[331109863,1720085437295,-500.0,0.0002068,2]
[331109864,1720085437308,-500.0,0.0002068,2]
[331109865,1720085437321,-500.0,0.0002068,2]
[331109866,1720085437333,-500.0,0.0002068,2]
[331109867,1720085437345,-500.0,0.0002068,2]
[331109868,1720085437357,-500.0,0.0002068,2]
[331109869,1720085437370,-500.0,0.0002068,2]
[331109870,1720085437383,-500.0,0.0002068,2]
[331109871,1720085437396,-500.0,0.0002068,2]
[331109872,1720085437408,-500.0,0.0002068,2]
[331109873,1720085437420,-500.0,0.0002068,2]
[331109874,1720085437432,-500.0,0.0002068,2]
[331109875,1720085437444,-500.0,0.0002068,2]
[331109876,1720085437455,-500.0,0.0002068,2]
[331109877,1720085437467,-500.0,0.0002068,2]
[331109878,1720085437479,-500.0,0.0002068,2]
[331109879,1720085437492,-500.0,0.0002068,2]
[331109880,1720085437508,-500.0,0.0002068,2]
[331109881,1720085437520,-500.0,0.0002068,2]
[331109882,1720085437532,-500.0,0.0002068,2]
[331109883,1720085437547,-500.0,0.0002068,2]
[331109884,1720085437563,-500.0,0.0002068,2]
[331109885,1720085437578,-500.0,0.0002068,2]
[331109886,1720085437590,-500.0,0.0002068,2]
[331109887,1720085437602,-500.0,0.0002068,2]
[331109888,1720085437613,-500.0,0.0002068,2]
[331109889,1720085437626,-500.0,0.0002068,2]
[331109890,1720085437638,-500.0,0.0002068,2]
[331109891,1720085437649,-500.0,0.0002068,2]
[331109892,1720085437662,-500.0,0.0002068,2]
[331109893,1720085437674,-500.0,0.0002068,2]
[331109894,1720085437686,-500.0,0.0002068,2]
[331109895,1720085437698,-500.0,0.0002068,2]
[331109896,1720085437710,-500.0,0.0002068,2]
[331109897,1720085437722,-500.0,0.0002068,2]
[331109898,1720085437734,-500.0,0.0002068,2]
[331109899,1720085437751,-500.0,0.0002068,2]
[331109900,1720085437771,-500.0,0.0002068,2]
[331109901,1720085437786,-500.0,0.0002068,2]
[331109903,1720085437803,-500.0,0.0002068,2]
[331109904,1720085437817,-500.0,0.0002068,2]
[331109905,1720085437832,-500.0,0.0002068,2]
[331109906,1720085437846,-500.0,0.0002068,2]
[331109907,1720085437861,-500.0,0.0002068,2]
[331109908,1720085437874,-500.0,0.0002068,2]
[331109909,1720085437887,-500.0,0.0002068,2]
[331109910,1720085437900,-500.0,0.0002068,2]
[331109911,1720085437913,-500.0,0.0002068,2]
[331109912,1720085437925,-500.0,0.0002068,2]
[331109913,1720085437938,-500.0,0.0002068,2]
[331109914,1720085437951,-500.0,0.0002068,2]
[331109915,1720085437964,-500.0,0.0002068,2]
[331109916,1720085437976,-500.0,0.0002068,2]
[331109917,1720085437989,-500.0,0.0002068,2]
[331109918,1720085438007,-500.0,0.0002068,2]
[331109919,1720085438019,-500.0,0.0002068,2]
[331109920,1720085438031,-500.0,0.0002068,2]
[331109921,1720085438043,-500.0,0.0002068,2]
[331109922,1720085438059,-500.0,0.0002068,2]
[331109923,1720085438070,-500.0,0.0002068,2]
[331109924,1720085438085,-500.0,0.0002068,2]
[331109925,1720085438097,-500.0,0.0002068,2]
[331109926,1720085438109,-500.0,0.0002068,2]
[331109927,1720085438121,-500.0,0.0002068,2]
[331109928,1720085438133,-500.0,0.0002068,2]
[331109929,1720085438144,-500.0,0.0002068,2]
[331109930,1720085438156,-500.0,0.0002068,2]
[331109931,1720085438168,-500.0,0.0002068,2]
[331109932,1720085438180,-500.0,0.0002068,2]
[331109933,1720085438192,-500.0,0.0002068,2]
[331109934,1720085438204,-500.0,0.0002068,2]
[331109935,1720085438216,-500.0,0.0002068,2]
[331109936,1720085438227,-500.0,0.0002068,2]
[331109937,1720085438239,-500.0,0.0002068,2]
[331109938,1720085438253,-500.0,0.0002068,2]
[331109939,1720085438266,-500.0,0.0002068,2]
[331109940,1720085438277,-220.1,0.00020685,3]
[331109941,1720085438289,-700.0,0.000207,7]
[331109942,1720085438301,-1000.0,0.000207,2]
[331109943,1720085438313,-730.57255246,0.00020741,2]
[331109944,1720085438324,-374.0,0.0002077,30]
[331109945,1720085438337,-355.0,0.0002077,30]
[331109946,1720085438348,-434694.70264574,0.00020778,2]
[331110020,1720085439193,-223472.75928962,0.00020778,2]
[331110026,1720085439245,-197.01512254,0.0002,2]
[331110028,1720085439257,-500.0,0.00020468,2]
[331110030,1720085439268,-926.97166036,0.00020778,2]
[331110032,1720085439280,-362.529,0.00020778,2]
[331110035,1720085439293,-5746.86347996,0.00020778,2]
[331110037,1720085439304,-7823.73689433,0.00020778,2]
[331110039,1720085439316,-8980.97957088,0.00020778,2]
[331110041,1720085439328,-77173.16446411,0.00020778,2]
[331110043,1720085439340,-32980.41639929,0.00020778,2]
[331110045,1720085439352,-4228.0863352,0.00020778,2]
[331110048,1720085439365,-658.25,0.00020778,2]
[331110110,1720085440103,-300.62749294,0.00015632,2]
[331110112,1720085440116,-1551.79250706,0.00015632,2]
[331110114,1720085440127,-983.467,0.00017637,2]
[331110116,1720085440137,-197.01512254,0.0002,2]
[331110118,1720085440148,-197.01512254,0.0002,2]
[331110120,1720085440159,-197.01512254,0.0002,2]
[331110122,1720085440171,-197.01512254,0.0002,2]
[331110124,1720085440182,-139.37806737,0.0002,2]
[331110127,1720085440199,-57.63705517,0.0002,2]
[331110129,1720085440211,-197.01512254,0.0002,2]
[331110131,1720085440221,-197.01512254,0.0002,2]
[331110133,1720085440232,-197.01512254,0.0002,2]
[331110135,1720085440243,-197.01512254,0.0002,2]
[331110137,1720085440257,-197.01512254,0.0002,2]
[331110139,1720085440268,-197.01512254,0.0002,2]
[331110141,1720085440278,-197.01512254,0.0002,2]
[331110143,1720085440289,-197.01512254,0.0002,2]
[331110145,1720085440299,-197.01512254,0.0002,2]
[331110147,1720085440310,-197.01512254,0.0002,2]
[331110149,1720085440320,-197.01512254,0.0002,2]
[331110151,1720085440330,-500.0,0.00020468,2]
[331110153,1720085440341,-500.0,0.00020468,2]
[331110155,1720085440351,-500.0,0.00020468,2]
[331110157,1720085440361,-500.0,0.00020468,2]
[331110159,1720085440372,-500.0,0.00020468,2]
[331110161,1720085440383,-500.0,0.00020468,2]
[331110163,1720085440394,-500.0,0.00020468,2]
[331110165,1720085440404,-280.27417689,0.00020468,2]
[331110168,1720085440418,-219.72582311,0.00020468,2]
[331110170,1720085440428,-500.0,0.00020468,2]
[331110172,1720085440439,-500.0,0.00020468,2]
[331110174,1720085440449,-500.0,0.00020468,2]
[331110176,1720085440459,-6001.10146838,0.00020778,2]
[331110178,1720085440473,-47724.6621952,0.00020778,2]
[331110180,1720085440483,-374.0,0.0002078,30]
[331110182,1720085440494,-355.0,0.0002078,30]
[331110184,1720085440507,-719.263983,0.00020781,2]
[331110186,1720085440518,-3870.40608965,0.00020789,2]
[331110188,1720085440529,-374.0,0.0002079,30]
[331110190,1720085440539,-355.0,0.0002079,30]
[331110193,1720085440551,-240.54,0.0002079,30]
[331110195,1720085440568,-322.09176541,0.0002079,7]
[331110197,1720085440578,-14939.91476787,0.00020795,2]
[331110199,1720085440591,-2874.05,0.00020795,2]
[331110201,1720085440603,-712.08271485,0.00020795,2]
[331110204,1720085440630,-442.92462443,0.00020468,2]
[331110222,1720085440813,-57.07537557,0.00020468,2]
[331110224,1720085440825,-551.96547348,0.00020795,2]
[331110226,1720085440838,-2084.0327375,0.00020795,2]
[331110228,1720085440851,-2158.98320904,0.00020795,2]
[331110230,1720085440866,-3031.97109726,0.00020795,2]
[331110233,1720085440877,-150.0,0.00020799,2]
[331110235,1720085440888,-1000.0,0.000208,7]
[331110236,1720085440898,-3003.8144212,0.000208,2]
[331110238,1720085440909,-4332.81448154,0.000208,2]
[331110278,1720085441299,-188.91025516,0.00020458,2]
[331110280,1720085441309,-500.0,0.00020468,2]
[331110282,1720085441319,-500.0,0.00020468,2]
[331110284,1720085441329,-167.08089745,0.00020468,2]
[331110286,1720085441341,-332.91910255,0.00020468,2]
[331110288,1720085441351,-500.0,0.00020468,2]
[331110291,1720085441360,-500.0,0.00020468,2]
[331110292,1720085441370,-35801.6402808,0.000208,2]
[331110295,1720085441382,-505.53116172,0.000208,2]
[331110310,1720085441520,-262.4755305,0.00020468,2]
[331110312,1720085441531,-237.5244695,0.00020468,2]
[331110314,1720085441541,-3302.55320659,0.000208,2]
[331110317,1720085441557,-65464.52245358,0.000208,2]
[331110319,1720085441573,-5185.24013832,0.000208,2]
[331110321,1720085441585,-902.16144431,0.000208,2]
[331110324,1720085441596,-939.63137312,0.000208,2]
[331110369,1720085442015,-462.854,0.00017637,2]
[331110371,1720085442024,-14.45084756,0.0002,2]
[331110373,1720085442036,-182.56427498,0.0002,2]
[331110375,1720085442046,-197.01512254,0.0002,2]
[331110377,1720085442055,-197.01512254,0.0002,2]
[331110379,1720085442065,-197.01512254,0.0002,2]
[331110381,1720085442075,-197.01512254,0.0002,2]
[331110383,1720085442085,-500.0,0.00020468,2]
[331110385,1720085442094,-500.0,0.00020468,2]
[331110387,1720085442103,-170.63251563,0.000208,2]
[331110390,1720085442115,-2191.28868631,0.000208,2]
[331110392,1720085442127,-5705.5,0.000208,2]
[331110465,1720085443179,-197.01512254,0.0002,2]
[331110469,1720085443189,-197.01512254,0.0002,2]
[331110472,1720085443199,-197.01512254,0.0002,2]
[331110474,1720085443208,-197.01512254,0.0002,2]
[331110477,1720085443218,-197.01512254,0.0002,2]
[331110480,1720085443227,-500.0,0.00020468,2]
[331110483,1720085443237,-500.0,0.00020468,2]
[331110486,1720085443247,-162.09000773,0.00020679,2]
[331110489,1720085443259,-1213.0,0.00020778,2]
[331110491,1720085443268,-705.66541438,0.000208,2]
[331110492,1720085443280,-1641.75281423,0.000208,2]
[331110493,1720085443292,-6770.17106522,0.000208,2]
[331110499,1720085443354,-197.01512254,0.0002,2]
[331110500,1720085443364,-7957.70456676,0.000208,2]
[331110501,1720085443846,-197.01512254,0.0002,2]
[331110502,1720085443856,-500.0,0.00020468,2]
[331110503,1720085443866,-500.0,0.00020468,2]
[331110504,1720085443876,-258101.29226349,0.000208,2]
[331110505,1720085443886,-1463.428217,0.00020841,2]
[331110506,1720085443896,-1655.63351,0.00020841,2]
[331110507,1720085443907,-1371.382682,0.00020841,2]
[331110508,1720085443916,-1718.777668,0.00020841,2]
[331110509,1720085443926,-1499.292968,0.00020841,2]
[331110510,1720085443936,-2742.765365,0.00020841,2]
[331110511,1720085443946,-1400.0,0.000209,7]
[331110512,1720085443955,-151.0,0.00020946,2]
[331110513,1720085443965,-1444.9678708,0.00020953,2]
[331110514,1720085443975,-26965.78678275,0.00020953,2]
[331110515,1720085443984,-1000.0,0.00020998,2]
[331110516,1720085443994,-55000.0,0.00021,2]
[331110517,1720085444011,-225.25950071,0.00021,2]
[331110518,1720085444020,-1300.0,0.00021,2]
[331110519,1720085444031,-719.263983,0.00021034,2]
[331110520,1720085444040,-2969.46777455,0.00021039,2]
[331110521,1720085444050,-179.81673788,0.00021052,2]
[331110522,1720085444059,-1463.428217,0.00021098,2]
[331110523,1720085444069,-1655.63351,0.00021098,2]
[331110525,1720085444079,-1371.382682,0.00021098,2]
[331110527,1720085444089,-1718.777668,0.00021098,2]
[331110529,1720085444098,-1499.292968,0.00021098,2]
[331110532,1720085444114,-2742.765365,0.00021098,2]
[331110533,1720085444125,-500.0,0.00021213,2]
[331110534,1720085444135,-500.0,0.00021222,2]
[331110535,1720085444144,-315.10956939,0.00021226,2]
[331110537,1720085444155,-500.0,0.00021231,2]
[331110539,1720085444166,-500.0,0.00021233,2]
[331110541,1720085444176,-151.0,0.00021234,2]
[331110543,1720085444186,-500.0,0.00021239,2]
[331110545,1720085444196,-500.0,0.00021248,2]
[331110548,1720085444207,-500.0,0.00021257,2]
[331110550,1720085444216,-500.0,0.00021266,2]
[331110552,1720085444226,-500.0,0.00021275,2]
[331110554,1720085444236,-500.0,0.00021283,2]
[331110556,1720085444246,-719.263983,0.00021287,2]
[331110558,1720085444262,-500.0,0.00021292,2]
[331110560,1720085444271,-500.0,0.00021301,2]
[331110562,1720085444281,-500.0,0.0002131,2]
[331110564,1720085444291,-500.0,0.00021319,2]
[331110565,1720085444300,-500.0,0.00021327,2]
[331110566,1720085444310,-500.0,0.00021336,2]
[331110567,1720085444319,-500.0,0.00021345,2]
[331110568,1720085444328,-500.0,0.00021354,2]
[331110569,1720085444338,-1463.428217,0.00021356,2]
[331110570,1720085444348,-1655.63351,0.00021356,2]
[331110571,1720085444358,-1371.382682,0.00021356,2]
[331110572,1720085444368,-1718.777668,0.00021356,2]
[331110573,1720085444377,-1499.292968,0.00021356,2]
[331110574,1720085444387,-2742.765365,0.00021356,2]
[331110575,1720085444397,-500.0,0.00021363,2]
[331110576,1720085444407,-500.0,0.0002137,2]
[331110577,1720085444417,-500.0,0.00021371,2]
[331110578,1720085444428,-500.0,0.0002138,2]
[331110579,1720085444438,-500.0,0.00021389,2]
[331110580,1720085444448,-180.0,0.00021397,2]
[331110581,1720085444458,-500.0,0.00021398,2]
[331110582,1720085444468,-500.0,0.00021407,2]
[331110583,1720085444478,-760.82,0.00021407,2]
[331110584,1720085444487,-500.0,0.00021415,2]
[331110585,1720085444498,-500.0,0.00021424,2]
[331110586,1720085444511,-500.0,0.00021433,2]
[331110587,1720085444520,-1444.9678708,0.00021437,2]
[331110588,1720085444529,-26965.78678275,0.00021437,2]
[331110589,1720085444539,-500.0,0.00021442,2]
[331110590,1720085444551,-500.0,0.00021451,2]
[331110591,1720085444564,-500.0,0.00021459,2]
[331110592,1720085444574,-500.0,0.00021468,2]
[331110593,1720085444584,-500.0,0.00021477,2]
[331110594,1720085444594,-1096.43991024,0.00021479,2]
[331110595,1720085444605,-1043.53307032,0.00021479,2]
[331110596,1720085444615,-1121.95717119,0.00021479,2]
[331110597,1720085444624,-905.50970485,0.00021479,2]
[331110598,1720085444634,-500.0,0.00021486,2]
[331110599,1720085444644,-500.0,0.00021495,2]
[331110600,1720085444656,-500.0,0.00021503,2]
[331110601,1720085444665,-500.0,0.00021512,2]
[331110602,1720085444675,-2969.46777455,0.00021517,2]
[331110603,1720085444685,-500.0,0.00021521,2]
[331110604,1720085444694,-151.0,0.00021521,2]
[331110605,1720085444704,-179.81673788,0.00021523,2]
[331110606,1720085444714,-500.0,0.0002153,2]
[331110607,1720085444724,-500.0,0.00021539,2]
[331110608,1720085444734,-500.0,0.00021547,2]
[331110609,1720085444744,-500.0,0.00021556,2]
[331110610,1720085444757,-500.0,0.00021565,2]
[331110611,1720085444766,-500.0,0.00021574,2]
[331110612,1720085444777,-500.0,0.00021583,2]
[331110613,1720085444787,-500.0,0.00021591,2]
[331110614,1720085444796,-500.0,0.000216,2]
[331110615,1720085444805,-500.0,0.00021609,2]
[331110616,1720085444815,-1463.428217,0.00021613,2]
[331110617,1720085444825,-1655.63351,0.00021613,2]
[331110618,1720085444834,-1371.382682,0.00021613,2]
[331110619,1720085444844,-1718.777668,0.00021613,2]